bitfinex-derivatives/quotes_BNBF0:USTF0_20251002
["timestamp","ask_amount","ask_price","bid_price","bid_amount"]
[1759426104995,0.16397034,1062.0,1060.5,1.60257792]
[1759426105498,0.84390236,1061.2,1060.5,1.60257792]
[1759426106600,0.84390236,1061.2,1060.6,1.60642106]
[1759426106900,0.84390236,1061.2,1060.6,1.61042106]
[1759426115006,0.84390236,1061.1,1060.6,1.61042106]
[1759426116305,0.84390236,1061.3,1060.6,1.61042106]
[1759426119208,0.84390236,1061.2,1060.6,1.61042106]
[1759426119708,0.84390236,1061.4,1060.6,1.60642106]
[1759426119908,0.84390236,1061.4,1059.4,0.16397034]
[1759426119909,0.84390236,1061.2,1059.4,0.79240939]
[1759426120103,0.84390236,1061.3,1059.4,0.79240939]
[1759426120605,0.84390236,1061.2,1059.5,1.56954778]
[1759426120805,0.84390236,1061.2,1059.5,1.57354778]
[1759426123407,0.84390236,1061.3,1059.5,1.57354778]
[1759426123905,0.84390236,1061.0,1059.6,0.62843905]
[1759426124307,0.84390236,1061.1,1059.7,0.62843905]
[1759426136315,0.84390236,1061.0,1059.7,0.62843905]
[1759426136619,0.16397034,1062.0,1059.6,0.62843905]
[1759426136620,0.84390236,1060.9,1059.6,0.62843905]
[1759426137220,0.84390236,1060.9,1059.5,2.20198683]
[1759426137622,0.84390236,1060.9,1059.6,0.62843905]
[1759426137819,0.84390236,1060.9,1059.5,2.20198683]
[1759426138222,0.84390236,1061.0,1059.5,2.20198683]
[1759426138918,0.84390236,1060.9,1059.6,0.62843905]
[1759426139118,0.84390236,1060.9,1059.5,2.20198683]
[1759426141321,0.84390236,1061.0,1059.5,2.20198683]
[1759426142625,0.84390236,1060.9,1059.5,2.20198683]
[1759426145022,0.84390236,1060.8,1059.5,1.57354778]
[1759426145924,0.84390236,1060.9,1059.5,2.20198683]
[1759426146228,0.84390236,1061.0,1059.5,1.57354778]
[1759426146425,0.84390236,1061.1,1059.5,2.20198683]
[1759426154128,0.84390236,1061.1,1059.6,0.62843905]
[1759426155828,0.84390236,1061.0,1059.6,0.62843905]
[1759426156633,0.84390236,1061.2,1059.7,0.62843905]
[1759426158434,0.84390236,1061.0,1059.8,0.62843905]
[1759426167535,0.84390236,1061.3,1059.6,0.62843905]
[1759426167740,0.84390236,1061.0,1059.5,1.57354778]
[1759426173642,0.84390236,1061.0,1059.5,2.20198683]
[1759426174040,0.84390236,1060.9,1059.5,2.20198683]
[1759426177342,0.84390236,1060.8,1059.5,2.20198683]
[1759426183250,0.84390236,1060.9,1059.5,2.20198683]
[1759426187753,0.84390236,1060.9,1059.7,0.62843905]
[1759426187953,0.84390236,1060.9,1059.8,0.62843905]
[1759426188349,1.26585354,1061.1,1059.8,0.62843905]
[1759426188350,0.84390236,1061.0,1059.8,0.62843905]
[1759426188951,0.84390236,1061.2,1059.8,0.62843905]
[1759426189555,0.84390236,1061.3,1059.8,0.62843905]
[1759426193360,0.84390236,1061.3,1059.9,0.62843905]
[1759426194363,0.84390236,1061.2,1059.9,0.62843905]
[1759426197759,0.84390236,1061.3,1059.9,0.62843905]
[1759426198564,0.84390236,1061.2,1059.9,0.62843905]
[1759426199566,0.84390236,1061.3,1059.9,0.62843905]
[1759426200563,0.84390236,1061.4,1060.0,0.62843905]
[1759426200963,0.84390236,1061.5,1060.0,0.62843905]
[1759426201765,0.84390236,1061.4,1060.0,0.62843905]
[1759426207277,0.84390236,1061.4,1059.9,0.62843905]
[1759426207573,0.84390236,1061.4,1060.0,0.62843905]
[1759426207976,0.84390236,1061.4,1059.9,0.62843905]
[1759426208176,0.84390236,1061.5,1059.9,0.62843905]
[1759426208374,0.84390236,1061.4,1059.9,0.62843905]
[1759426208674,0.84390236,1061.3,1059.9,0.62843905]
[1759426209272,0.84390236,1061.3,1059.7,0.83791874]
[1759426209273,0.84390236,1061.2,1059.8,0.62843905]
[1759426212177,0.84390236,1061.2,1059.7,0.62843905]
[1759426212383,0.84390236,1061.1,1059.7,0.62843905]
[1759426213182,0.84390236,1061.2,1059.7,0.62843905]
[1759426214981,0.84390236,1061.6,1059.8,0.62843905]
[1759426215380,0.84390236,1061.7,1059.9,0.62843905]
[1759426216179,0.84390236,1061.5,1059.9,0.62843905]
[1759426221187,0.84390236,1061.6,1059.9,0.62843905]
[1759426222587,0.84390236,1061.5,1059.9,0.62843905]
[1759426223486,0.84390236,1061.6,1059.9,0.62843905]
[1759426225286,0.84390236,1061.6,1059.8,0.62843905]
[1759426227690,0.84390236,1061.5,1059.9,0.62843905]
[1759426228286,0.84390236,1061.4,1059.9,0.62843905]
[1759426229091,0.84390236,1061.5,1059.9,0.62843905]
[1759426230294,0.84390236,1061.4,1059.9,0.62843905]
[1759426231294,0.84390236,1061.5,1059.9,0.62843905]
[1759426231788,0.84390236,1061.4,1059.9,0.62843905]
[1759426232192,0.84390236,1061.5,1060.0,0.62843905]
[1759426232391,0.84390236,1061.5,1059.9,0.62843905]
[1759426232892,0.84390236,1061.6,1059.9,0.62843905]
[1759426233296,0.84390236,1061.6,1060.0,0.62843905]
[1759426233692,0.84390236,1061.7,1060.0,0.62843905]
[1759426235196,0.84390236,1061.6,1060.0,0.62843905]
[1759426236597,0.84390236,1061.7,1060.0,0.62843905]
[1759426237795,0.84390236,1061.6,1060.0,0.62843905]
[1759426238295,0.84390236,1061.6,1060.1,0.62843905]
[1759426240000,0.84390236,1061.7,1060.2,0.62843905]
[1759426241204,0.84390236,1061.6,1060.2,0.63243905]
[1759426241405,0.84390236,1061.7,1060.2,0.63243905]
[1759426241706,0.84390236,1061.7,1060.3,1.42699861]
[1759426242305,0.84390236,1061.7,1060.3,2.05543766]
[1759426244806,0.84390236,1061.8,1060.3,2.05543766]
[1759426245206,0.84390236,1061.7,1060.4,0.62843905]
[1759426245507,0.84390236,1061.8,1060.3,2.05543766]
[1759426246604,1.00789666,1061.9,1060.3,2.05543766]
[1759426247308,0.84390236,1061.8,1060.3,2.05543766]
[1759426248609,0.84390236,1061.8,1060.3,1.42699861]
[1759426249209,0.84390236,1061.7,1060.3,1.42699861]
[1759426249409,0.84390236,1061.6,1060.3,1.42699861]
[1759426250207,0.84390236,1061.5,1060.3,1.42699861]
[1759426250407,0.84390236,1061.8,1060.3,1.42699861]
[1759426252012,1.00789666,1061.9,1060.3,1.42699861]
[1759426252910,0.1639943,1061.9,1060.3,1.42699861]
[1759426254111,1.00789666,1061.9,1060.3,1.42699861]
[1759426254408,0.84390236,1061.7,1060.3,1.42699861]
[1759426258415,0.84390236,1061.6,1060.3,1.42699861]
[1759426264918,0.84390236,1061.5,1060.3,1.42699861]
[1759426265417,0.84390236,1061.6,1060.3,1.42699861]
[1759426269722,0.84390236,1061.7,1060.3,1.42699861]
[1759426270826,0.84390236,1061.5,1060.3,1.42699861]
[1759426271026,0.84390236,1061.6,1060.3,1.42699861]
[1759426271223,0.84390236,1061.5,1060.3,1.42699861]
[1759426277226,0.84390236,1061.3,1060.3,1.42699861]
[1759426277425,0.1639943,1061.9,1060.3,1.42699861]
[1759426277426,0.84390236,1061.2,1060.3,1.42699861]
[1759426279731,0.84390236,1061.3,1060.3,1.42699861]
[1759426281231,0.84390236,1061.2,1060.3,1.42699861]
[1759426283531,0.84390236,1061.3,1060.3,1.42699861]
[1759426283732,0.84390236,1061.2,1060.3,1.42699861]
[1759426285829,0.84390236,1061.1,1060.3,1.42699861]
[1759426287131,0.84390236,1061.3,1060.3,1.42699861]
[1759426288232,0.84390236,1061.4,1060.3,1.42699861]
[1759426289132,0.84390236,1061.3,1060.3,1.42699861]
[1759426289337,0.84390236,1061.4,1060.3,1.42699861]
[1759426291838,0.84390236,1061.3,1060.3,1.42699861]
[1759426292237,0.84390236,1061.4,1060.3,1.42699861]
[1759426293741,0.84390236,1061.3,1060.3,1.42699861]
[1759426294336,0.84390236,1061.2,1060.3,1.42699861]
[1759426296737,0.84390236,1061.3,1060.3,1.42699861]
[1759426297241,0.84390236,1061.2,1060.3,1.42699861]
[1759426298543,0.84390236,1061.3,1060.3,1.42699861]
[1759426298742,0.84390236,1061.2,1060.3,1.42699861]
[1759426299239,0.84390236,1061.1,1060.3,1.42699861]
[1759426299539,0.84390236,1061.0,1060.3,1.42699861]
[1759426300445,0.84390236,1060.6,1059.6,1.46276027]
[1759426300644,0.1639943,1061.9,1059.6,1.46276027]
[1759426300645,0.84390236,1060.5,1059.6,1.46276027]
[1759426301544,0.84390236,1060.6,1059.6,1.46276027]
[1759426302245,0.84390236,1060.5,1059.6,1.46276027]
[1759426302551,0.84390236,1060.6,1059.6,1.46276027]
[1759426303843,0.84390236,1060.7,1059.6,1.46276027]
[1759426306251,0.84390236,1060.8,1059.6,1.46276027]
[1759426306951,0.84390236,1060.9,1059.6,1.46276027]
[1759426308852,0.84390236,1061.0,1059.6,1.46276027]
[1759426309252,0.84390236,1060.8,1059.6,1.46276027]
[1759426310056,0.84390236,1060.7,1059.6,1.46276027]
[1759426310457,0.84390236,1060.6,1059.6,1.46276027]
[1759426313759,0.84390236,1060.5,1059.6,1.46276027]
[1759426314462,0.84390236,1060.6,1059.6,1.46276027]
[1759426315561,0.84390236,1060.8,1059.6,1.46276027]
[1759426316062,0.84390236,1060.9,1059.6,1.46276027]
[1759426317261,0.84390236,1060.8,1059.6,1.46276027]
[1759426317462,0.84390236,1060.9,1059.6,1.46276027]
[1759426318261,0.84390236,1060.8,1059.6,1.46276027]
[1759426318666,0.84390236,1060.9,1059.6,1.46276027]
[1759426323771,0.84390236,1060.8,1059.6,1.46276027]
[1759426324571,0.84390236,1060.7,1059.6,1.46276027]
[1759426324769,0.84390236,1060.5,1059.6,1.46276027]
[1759426325369,0.84390236,1060.6,1059.6,1.46276027]
[1759426327076,0.84390236,1060.7,1059.6,1.46276027]
[1759426330278,0.84390236,1060.6,1059.6,1.46276027]
[1759426336378,0.84390236,1060.5,1059.6,1.46276027]
[1759426337479,1.26585354,1060.7,1059.6,1.46276027]
[1759426337480,0.84390236,1060.4,1059.6,1.46276027]
[1759426341384,0.84390236,1060.5,1059.6,1.46276027]
[1759426342383,0.84390236,1060.4,1059.6,1.46276027]
[1759426343881,0.84390236,1060.5,1059.6,1.46276027]
[1759426345282,0.84390236,1060.4,1059.6,1.46276027]
[1759426345485,0.84390236,1060.5,1059.6,1.46276027]
[1759426346288,0.84390236,1060.4,1059.6,1.46276027]
[1759426350394,0.84390236,1060.5,1059.6,1.46276027]
[1759426354098,0.84390236,1060.4,1059.6,1.46276027]
[1759426356598,0.84390236,1060.3,1059.6,1.46276027]
[1759426357395,1.26585354,1060.5,1059.6,1.46276027]
[1759426357396,0.84390236,1060.2,1059.6,1.46276027]
[1759426358997,0.84390236,1060.1,1059.6,1.46276027]
[1759426361501,0.84390236,1060.3,1059.4,0.004]
[1759426367206,0.84390236,1060.2,1059.4,0.004]
[1759426368008,0.84390236,1060.1,1059.4,0.004]
[1759426368212,0.84390236,1060.2,1059.4,0.004]
[1759426368910,0.84390236,1060.1,1059.4,0.004]
[1759426379226,0.84390236,1060.3,1059.4,0.004]
[1759426381326,0.84390236,1060.5,1059.4,0.004]
[1759426381523,0.84390236,1060.3,1059.4,0.004]
[1759426382527,0.84390236,1060.4,1059.4,0.004]
[1759426391233,0.84390236,1060.5,1059.4,0.004]
[1759426391734,0.84390236,1060.4,1059.4,0.004]
[1759426392442,0.84390236,1060.5,1059.4,0.004]
[1759426393836,0.84390236,1060.6,1059.4,0.004]
[1759426394237,0.84390236,1060.7,1059.4,0.004]
[1759426395341,0.84390236,1060.6,1059.4,0.004]
[1759426396042,0.84390236,1060.4,1059.4,0.004]
[1759426398440,0.84390236,1060.5,1059.4,0.004]
[1759426403452,0.84390236,1060.4,1059.4,0.004]
[1759426404344,0.84390236,1060.5,1059.4,0.004]
[1759426405144,0.84390236,1060.6,1059.2,0.62800628]
[1759426405345,0.84390236,1060.3,1059.1,0.16820477]
[1759426405545,0.84390236,1060.1,1059.1,0.16820477]
[1759426405746,0.84390236,1060.1,1059.2,1.14755455]
[1759426406348,0.84390236,1060.2,1059.2,1.14755455]
[1759426408647,0.84390236,1060.3,1059.2,1.14755455]
[1759426408851,0.84390236,1060.4,1059.2,1.14755455]
[1759426409047,0.84390236,1060.5,1059.2,1.14755455]
[1759426411756,0.84390236,1060.4,1059.2,1.14755455]
[1759426413557,0.84390236,1060.8,1059.2,1.14755455]
[1759426413856,0.84390236,1060.7,1059.2,1.14755455]
[1759426415358,0.84390236,1060.6,1059.2,1.14755455]
[1759426416155,0.84390236,1060.8,1059.2,1.14755455]
[1759426416357,0.84390236,1061.0,1059.2,1.77976207]
[1759426417258,0.84390236,1061.1,1059.2,1.77976207]
[1759426418660,0.84390236,1061.2,1059.3,0.63220752]
[1759426419558,0.84390236,1061.0,1059.3,0.63220752]
[1759426422162,0.84390236,1061.0,1059.4,0.63220752]
[1759426422362,0.84390236,1061.0,1059.3,0.63220752]
[1759426423665,0.84390236,1061.1,1059.3,0.63220752]
[1759426423861,0.84390236,1061.0,1059.3,0.63220752]
[1759426424962,0.84390236,1061.1,1059.3,0.63220752]
[1759426425266,0.84390236,1061.1,1059.3,1.75018956]
[1759426425462,0.84390236,1061.2,1059.3,1.12198204]
[1759426425662,0.84390236,1061.1,1059.3,1.12198204]
[1759426428165,0.84390236,1061.1,1059.3,1.75418956]
[1759426428869,0.84390236,1061.1,1059.3,0.63220752]
[1759426430270,0.84390236,1061.0,1059.3,0.63220752]
[1759426431475,0.84390236,1061.1,1059.3,0.63220752]
[1759426431672,0.84390236,1061.0,1059.3,0.63220752]
[1759426432373,0.84390236,1061.0,1059.2,1.75631418]
[1759426434170,0.84390236,1061.0,1059.3,0.63220752]
[1759426434374,0.84390236,1061.0,1059.2,1.75631418]
[1759426434578,0.84390236,1061.0,1059.3,0.63220752]
[1759426436377,0.84390236,1061.0,1059.2,1.75631418]
[1759426437078,0.84390236,1061.1,1059.3,0.63220752]
[1759426437679,0.84390236,1061.0,1059.2,1.75631418]
[1759426437876,0.84390236,1061.1,1059.3,0.63220752]
[1759426438079,0.84390236,1061.0,1059.2,1.75631418]
[1759426438374,0.84390236,1061.1,1059.2,1.75631418]
[1759426438576,0.84390236,1061.3,1059.2,1.75631418]
[1759426438779,0.84390236,1061.4,1059.4,0.63220752]
[1759426439079,0.84390236,1061.3,1059.3,0.63220752]
[1759426439480,0.16408322,1061.2,1059.3,0.63220752]
[1759426439880,1.00798558,1061.2,1059.4,0.63220752]
[1759426441177,0.16408322,1061.2,1059.4,0.63220752]
[1759426441880,0.84390236,1061.3,1059.4,0.63220752]
[1759426442175,1.00797398,1061.4,1059.4,0.63220752]
[1759426443379,0.16407162,1061.4,1059.4,0.63220752]
[1759426443982,1.00797398,1061.4,1059.4,0.63220752]
[1759426444180,1.00797398,1061.4,1059.5,0.63220752]
[1759426444380,0.16407162,1061.4,1059.4,0.63220752]
[1759426445179,1.00797398,1061.4,1059.4,0.63220752]
[1759426445481,0.16407162,1061.4,1059.4,0.63220752]
[1759426445680,1.00797398,1061.4,1059.4,0.63220752]
[1759426446582,0.84390236,1061.3,1059.3,0.63220752]
[1759426447080,0.84390236,1061.2,1059.3,0.63220752]
[1759426447280,0.84390236,1061.1,1059.3,0.63220752]
[1759426447583,0.84390236,1061.2,1059.3,0.63220752]
[1759426449685,0.84390236,1061.3,1059.2,1.75631418]
[1759426451786,1.00797398,1061.4,1059.2,1.12410666]
[1759426453288,1.00797398,1061.4,1059.2,1.75631418]
[1759426453486,0.16407162,1061.4,1059.3,0.63220752]
[1759426453689,1.00797398,1061.4,1059.2,1.75631418]
[1759426454288,0.84390236,1061.2,1059.2,1.75631418]
[1759426455485,0.84390236,1061.3,1059.2,1.75631418]
[1759426456390,0.84390236,1061.2,1059.3,0.63220752]
[1759426456791,0.84390236,1061.3,1059.3,0.63220752]
[1759426463095,0.84390236,1061.2,1059.3,0.63220752]
[1759426463591,0.84390236,1061.3,1059.3,0.63220752]
[1759426464892,0.84390236,1061.3,1059.4,0.63220752]
[1759426466393,0.84390236,1061.3,1059.5,0.63220752]
[1759426466692,0.84390236,1061.3,1059.6,0.63220752]
[1759426467294,0.84390236,1061.3,1059.7,0.63220752]
[1759426468397,0.84390236,1061.3,1059.8,0.63220752]
[1759426469994,0.84390236,1061.2,1059.8,0.63220752]
[1759426472499,0.16407162,1061.4,1059.8,0.63220752]
[1759426473402,0.16407162,1061.4,1059.9,0.63220752]
[1759426476108,0.84390236,1061.1,1059.9,0.63220752]
[1759426478907,0.84390236,1061.1,1059.2,1.12410666]
[1759426478908,0.84390236,1061.2,1059.8,0.63220752]
[1759426479608,0.84390236,1061.0,1059.7,0.63220752]
[1759426483908,0.84390236,1061.0,1059.8,0.63220752]
[1759426484712,0.84390236,1061.1,1059.9,0.63220752]
[1759426489922,0.84390236,1061.2,1059.8,0.63220752]
[1759426495031,0.84390236,1061.2,1059.9,0.63220752]
[1759426498434,0.84390236,1061.1,1059.9,0.63220752]
[1759426498732,0.84390236,1061.2,1059.9,0.63220752]
[1759426505139,0.84390236,1061.3,1059.9,0.63220752]
[1759426506037,0.84390236,1061.2,1059.9,0.63220752]
[1759426506341,0.84390236,1061.3,1059.9,0.63220752]
[1759426506638,0.84390236,1061.2,1059.8,0.63220752]
[1759426506937,0.84390236,1061.3,1059.8,0.63220752]
[1759426507341,0.84390236,1061.3,1059.6,0.83791874]
[1759426507342,0.84390236,1061.3,1059.9,0.63220752]
[1759426508839,0.84390236,1061.2,1059.9,0.63220752]
[1759426511944,0.84390236,1061.1,1059.8,0.63220752]
[1759426512240,0.84390236,1061.0,1059.7,0.63220752]
[1759426512640,0.84390236,1060.9,1059.8,0.63220752]
[1759426522248,0.84390236,1061.0,1059.8,0.63220752]
[1759426524454,0.84390236,1060.9,1059.8,0.63220752]
[1759426524751,0.84390236,1061.0,1059.8,0.63220752]
[1759426524952,0.84390236,1060.9,1059.8,0.63220752]
[1759426527555,0.84390236,1061.0,1059.7,0.63220752]
[1759426534157,0.84390236,1061.1,1059.7,0.63220752]
[1759426540070,0.84390236,1061.1,1059.8,0.63220752]
[1759426540366,0.84390236,1061.1,1059.9,0.63220752]
[1759426540569,0.84390236,1061.1,1059.8,0.63220752]
[1759426541071,0.84390236,1061.2,1059.8,0.63220752]
[1759426541668,0.84390236,1061.2,1059.9,0.63220752]
[1759426542772,0.84390236,1061.1,1060.0,0.63220752]
[1759426543168,0.84390236,1061.0,1060.0,0.63220752]
[1759426545073,0.84390236,1061.1,1060.0,0.63220752]
[1759426547075,0.84390236,1061.5,1059.9,0.63220752]
[1759426547272,1.0079384,1061.6,1060.0,0.63220752]
[1759426547475,1.0079384,1061.6,1059.6,0.83791874]
[1759426547476,1.0079384,1061.6,1059.9,0.63220752]
[1759426547676,1.0079384,1061.6,1060.0,0.63220752]
[1759426548272,1.0079384,1061.6,1059.9,0.63220752]
[1759426548775,0.84390236,1061.5,1060.0,0.63220752]
[1759426549072,0.84390236,1061.4,1060.0,0.63220752]
[1759426552786,0.84390236,1061.3,1060.0,0.63220752]
[1759426553091,0.84390236,1061.2,1060.1,0.63220752]
[1759426554992,0.84390236,1061.2,1060.0,0.63220752]
[1759426558000,0.84390236,1061.3,1059.8,0.63220752]
[1759426558798,0.84390236,1061.2,1059.7,0.63220752]
[1759426561901,0.84390236,1061.2,1059.5,0.83791874]
[1759426561902,0.84390236,1061.0,1059.8,0.63220752]
[1759426562908,0.84390236,1061.2,1059.7,0.63220752]
[1759426563106,0.84390236,1061.1,1059.6,1.32739161]
[1759426563513,0.84390236,1061.0,1059.6,1.32739161]
[1759426563812,0.84390236,1060.9,1059.6,1.32739161]
[1759426564014,0.84390236,1060.7,1059.6,1.32739161]
[1759426564211,0.84390236,1060.6,1059.6,1.32739161]
[1759426567109,0.84390236,1060.7,1059.6,1.32739161]
[1759426567812,0.84390236,1060.6,1059.6,1.32739161]
[1759426568514,0.84390236,1060.7,1059.6,1.32739161]
[1759426573815,0.84390236,1060.8,1059.6,1.32739161]
[1759426577331,0.84390236,1060.7,1059.6,1.32739161]
[1759426579726,0.84390236,1061.3,1059.6,1.32739161]
[1759426580426,0.84390236,1060.4,1059.6,1.32739161]
[1759426581221,0.84390236,1060.5,1059.6,1.32739161]
[1759426584537,0.84390236,1060.8,1059.6,1.32739161]
[1759426584738,0.84390236,1060.9,1059.6,1.32739161]
[1759426585924,0.84390236,1060.6,1059.6,1.32739161]
[1759426590532,0.84390236,1060.7,1059.6,1.32739161]
[1759426591433,0.84390236,1060.6,1059.6,1.32739161]
[1759426593944,0.84390236,1060.5,1059.6,1.32739161]
[1759426594241,0.84390236,1060.4,1059.6,1.32739161]
[1759426598344,0.84390236,1060.5,1059.6,1.32739161]
[1759426604953,0.84390236,1060.7,1059.6,1.32739161]
[1759426605252,0.84390236,1060.8,1059.6,1.32739161]
[1759426605654,0.84390236,1060.6,1059.6,1.32739161]
[1759426608555,0.84390236,1060.5,1059.6,1.32739161]
[1759426609258,0.84390236,1060.6,1059.6,1.32739161]
[1759426609656,0.84390236,1060.5,1059.6,1.32739161]
[1759426611056,0.84390236,1060.6,1059.6,1.32739161]
[1759426612362,0.84390236,1060.5,1059.6,1.32739161]
[1759426613858,0.84390236,1060.4,1059.6,1.32739161]
[1759426615062,0.84390236,1060.3,1059.6,1.32739161]
[1759426616064,0.84390236,1060.4,1059.6,1.32739161]
[1759426616360,0.84390236,1060.3,1059.6,1.32739161]
[1759426617974,0.84390236,1060.1,1059.6,1.32739161]
[1759426619061,0.84390236,1060.0,1059.6,1.32739161]
[1759426621464,0.84390236,1060.1,1059.6,1.32739161]
[1759426621664,0.84390236,1060.0,1059.6,1.32739161]
[1759426621866,0.84390236,1060.1,1059.6,1.32739161]
[1759426622180,0.84390236,1060.0,1059.6,1.32739161]
[1759426622865,0.84390236,1059.9,1059.6,1.32739161]
[1759426623968,0.84390236,1060.1,1059.6,1.32739161]
[1759426625166,0.84390236,1060.0,1059.6,1.32739161]
[1759426627167,0.84390236,1060.2,1059.6,1.32739161]
[1759426630075,0.84390236,1060.1,1059.6,1.32739161]
[1759426630976,0.84390236,1060.0,1059.6,1.32739161]
[1759426631475,0.84390236,1059.9,1059.6,1.32739161]
[1759426632076,0.84390236,1059.8,1059.6,1.32739161]
[1759426634180,0.84390236,1059.9,1059.6,1.32739161]
[1759426634676,0.84390236,1059.8,1059.6,1.32739161]
[1759426635278,0.84390236,1059.9,1059.6,1.32739161]
[1759426635876,0.84390236,1059.8,1059.6,1.32739161]
[1759426636082,0.84390236,1059.9,1059.6,1.32739161]
[1759426636382,0.84390236,1060.0,1059.6,1.32739161]
[1759426636782,0.84390236,1059.9,1059.6,1.32739161]
[1759426636979,0.84390236,1060.0,1059.6,1.32739161]
[1759426639585,0.84390236,1060.4,1059.6,1.32739161]
[1759426642189,0.84390236,1060.0,1059.6,1.32739161]
[1759426642391,0.84390236,1060.0,1059.7,1.45007348]
[1759426644993,0.84390236,1060.1,1059.7,1.45007348]
[1759426645898,0.84390236,1060.3,1059.1,0.16420787]
[1759426649294,0.84390236,1060.7,1059.1,0.16420787]
[1759426649698,0.84390236,1060.6,1059.1,0.16420787]
[1759426650200,0.84390236,1060.5,1059.1,0.16420787]
[1759426650401,0.84390236,1060.4,1059.1,0.16420787]
[1759426650597,0.84390236,1060.2,1059.1,0.16420787]
[1759426651002,0.84390236,1060.3,1059.1,0.16420787]
[1759426651201,0.84390236,1060.2,1059.1,0.16420787]
[1759426651400,0.84390236,1060.3,1059.1,0.16420787]
[1759426651598,0.84390236,1060.2,1059.1,0.16420787]
[1759426652998,0.84390236,1060.1,1059.1,0.16420787]
[1759426653398,0.84390236,1059.9,1059.1,0.16420787]
[1759426657201,0.84390236,1060.0,1059.1,0.16420787]
[1759426658003,0.84390236,1060.2,1059.1,0.16420787]
[1759426659001,0.84390236,1060.1,1059.1,0.16420787]
[1759426660406,0.84390236,1060.0,1059.1,0.16420787]
[1759426660606,0.84390236,1060.1,1059.1,0.16420787]
[1759426664010,0.84390236,1060.2,1059.1,0.16420787]
[1759426665810,0.84390236,1060.1,1059.1,0.16420787]
[1759426672910,0.84390236,1060.0,1059.1,0.16420787]
[1759426673509,0.84390236,1060.1,1059.1,0.16420787]
[1759426676013,0.84390236,1060.2,1059.1,0.16420787]
[1759426679811,0.84390236,1060.1,1059.1,0.16420787]
[1759426680516,0.84390236,1060.0,1059.1,0.16420787]
[1759426683316,0.84390236,1060.1,1059.1,0.16420787]
[1759426686612,0.84390236,1060.0,1059.1,0.16420787]
[1759426687415,2.10975591,1061.0,1059.1,0.16420787]
[1759426687416,0.84390236,1060.1,1059.1,0.16420787]
[1759426688213,0.84390236,1060.2,1059.1,0.16420787]
[1759426688411,0.84390236,1060.1,1059.1,0.16420787]
[1759426688616,0.84390236,1060.2,1059.1,0.16420787]
[1759426688912,0.84390236,1060.1,1059.1,0.16420787]
[1759426691517,0.84390236,1060.0,1059.1,0.16420787]
[1759426692317,0.84390236,1059.9,1059.1,0.16420787]
[1759426693316,0.84390236,1059.8,1059.1,0.16420787]
[1759426694020,0.84390236,1059.9,1059.1,0.16420787]
[1759426694221,0.84390236,1059.8,1059.1,0.16420787]
[1759426696821,0.84390236,1059.9,1059.1,0.16420787]
[1759426698619,0.84390236,1060.0,1059.1,0.16420787]
[1759426699723,2.9620421,1061.4,1059.1,0.16420787]
[1759426699724,0.84390236,1060.3,1059.1,0.16420787]
[1759426701422,0.84390236,1060.1,1059.1,0.16420787]
[1759426711225,0.84390236,1060.0,1059.1,0.16420787]
[1759426714232,0.84390236,1060.2,1059.1,0.16420787]
[1759426719941,0.84390236,1060.1,1059.1,0.16420787]
[1759426724843,0.84390236,1060.4,1059.2,0.6353931]
[1759426725643,0.84390236,1060.5,1059.1,2.24841087]
[1759426730750,0.84390236,1060.6,1059.1,1.61301777]
[1759426731050,0.84390236,1060.5,1059.1,1.61301777]
[1759426733849,0.84390236,1060.4,1059.1,2.24841087]
[1759426735549,0.84390236,1060.5,1059.1,2.24841087]
[1759426736858,0.84390236,1060.4,1059.1,2.24841087]
[1759426742659,0.84390236,1060.6,1059.4,0.6353931]
[1759426743260,0.84390236,1060.6,1059.3,0.6353931]
[1759426743963,0.84390236,1060.7,1059.4,0.6353931]
[1759426744162,0.84390236,1060.7,1059.4,2.15636466]
[1759426744462,0.84390236,1060.9,1059.4,1.52097156]
[1759426744663,1.26585354,1061.2,1059.4,1.52097156]
[1759426744664,0.84390236,1061.0,1059.4,1.52097156]
[1759426746564,2.1097559,1060.9,1059.4,1.52097156]
[1759426746762,0.84390236,1060.7,1059.4,1.52097156]
[1759426746963,0.84390236,1060.6,1059.4,1.52097156]
[1759426749564,0.84390236,1060.5,1059.4,1.52097156]
[1759426749764,0.84390236,1060.6,1059.4,1.52097156]
[1759426751566,0.84390236,1060.5,1059.4,1.52097156]
[1759426751766,0.84390236,1060.6,1059.4,1.52097156]
[1759426754069,0.84390236,1060.5,1059.4,1.52097156]
[1759426756475,0.84390236,1060.4,1059.4,1.52097156]
[1759426759074,0.84390236,1060.3,1059.4,1.52097156]
[1759426764778,0.84390236,1060.4,1059.4,1.52097156]
[1759426768583,0.84390236,1060.3,1059.4,1.52097156]
[1759426768890,0.84390236,1060.4,1059.4,1.52097156]
[1759426769887,0.84390236,1060.1,1059.4,1.52097156]
[1759426772485,0.84390236,1060.3,1059.4,1.52097156]
[1759426775193,0.84390236,1060.2,1059.4,1.52097156]
[1759426775597,0.84390236,1060.1,1059.4,1.52097156]
[1759426775997,1.26585354,1060.3,1059.4,1.52097156]
[1759426775998,0.84390236,1060.0,1059.4,1.52097156]
[1759426782201,0.84390236,1060.1,1059.4,1.52097156]
[1759426782397,0.84390236,1060.0,1059.4,1.52097156]
[1759426784505,0.16414514,1060.8,1059.4,1.52097156]
[1759426784506,0.84390236,1059.9,1059.4,1.52097156]
[1759426785409,0.84390236,1060.0,1059.4,1.52097156]
[1759426785908,0.84390236,1059.9,1059.4,1.52097156]
[1759426786313,0.84390236,1060.0,1059.4,1.52097156]
[1759426787114,0.84390236,1059.9,1059.4,1.52097156]
[1759426788714,0.84390236,1060.0,1059.4,1.52097156]
[1759426790711,0.84390236,1059.9,1059.4,1.52097156]
[1759426791314,0.84390236,1060.0,1059.4,1.52097156]
[1759426792713,0.84390236,1059.9,1059.4,1.52097156]
[1759426793814,0.84390236,1060.1,1059.4,1.52097156]
[1759426794018,0.84390236,1059.9,1059.4,1.52097156]
[1759426795414,0.84390236,1060.0,1059.4,1.52097156]
[1759426796317,0.84390236,1059.9,1059.4,1.52097156]
[1759426800020,0.84390236,1060.0,1059.4,1.52097156]
[1759426804030,0.84390236,1060.1,1059.4,1.52097156]
[1759426809432,0.84390236,1060.0,1059.4,1.52097156]
[1759426811032,0.84390236,1060.1,1059.4,1.52097156]
[1759426813331,0.84390236,1060.0,1059.4,1.52097156]
[1759426817040,0.84390236,1059.9,1059.4,1.52097156]
[1759426818840,0.84390236,1060.0,1059.4,1.52097156]
[1759426819040,0.84390236,1060.2,1059.4,1.52097156]
[1759426819241,0.84390236,1060.1,1059.4,1.52097156]
[1759426819436,0.84390236,1060.2,1059.4,1.52097156]
[1759426820537,0.84390236,1060.1,1059.4,1.52097156]
[1759426821141,0.84390236,1060.2,1059.4,1.52097156]
[1759426821439,0.84390236,1060.1,1059.4,1.52097156]
[1759426821639,0.84390236,1060.2,1059.4,1.52097156]
[1759426825744,0.84390236,1060.3,1059.4,1.52097156]
[1759426826141,0.84390236,1060.2,1059.4,1.52097156]
[1759426826544,0.84390236,1060.4,1059.4,1.52097156]
[1759426829749,0.84390236,1060.3,1059.4,1.52097156]
[1759426830347,0.84390236,1060.2,1059.4,1.52097156]
[1759426832446,0.84390236,1060.3,1059.4,1.52097156]
[1759426834953,0.84390236,1060.4,1059.4,1.52097156]